bitfinex-derivatives/quotes_SOLF0:USTF0_20250527
["timestamp","ask_amount","ask_price","bid_price","bid_amount"]
[1748307971674,0.03943934,173.33,173.32,5.7679]
[1748307973378,0.03943934,173.33,173.31,122.38]
[1748307976782,5.80713934,173.33,173.31,122.38]
[1748307977676,0.03943934,173.33,173.28,0.03878263]
[1748307978378,5.7689,173.29,173.28,0.03878263]
[1748307982082,5.7689,173.29,173.28,8.263e-05]
[1748307982282,5.7704,173.25,173.23,122.4]
[1748307982482,122.42,173.32,173.23,122.4]
[1748307982980,5.7706,173.25,173.23,122.4]
[1748307984282,5.80890222,173.26,173.23,122.4]
[1748307984482,0.03890222,173.26,173.23,122.4]
[1748307986083,5.80910222,173.26,173.23,122.4]
[1748307986284,0.03890222,173.26,173.23,122.4]
[1748307987982,0.03890222,173.26,173.22,0.03688928]
[1748307988885,5.7703,173.25,173.22,0.03688928]
[1748307989090,0.03890222,173.26,173.22,0.03688928]
[1748307989290,0.03890222,173.26,173.22,121.87688928]
[1748307989791,0.03890222,173.26,173.23,5.9495]
[1748307991192,0.03890222,173.26,173.23,2.049]
[1748307991584,5.7706,173.24,173.23,2.049]
[1748307992488,0.03890222,173.26,173.23,2.049]
[1748307992992,0.03890222,173.26,173.23,6.2278]
[1748307993292,0.03890222,173.26,173.24,5.7706]
[1748307993494,121.84,173.33,173.23,6.2278]
[1748307993999,5.7688,173.3,173.26,5.7697]
[1748307994292,5.7688,173.3,173.26,127.6097]
[1748307994493,5.80732039,173.3,173.26,127.64765875]
[1748307994992,0.03852039,173.3,173.26,121.87795875]
[1748307995197,5.769,173.29,173.26,121.87795875]
[1748307995496,0.03852039,173.3,173.26,121.87795875]
[1748307995796,5.769,173.29,173.26,121.87795875]
[1748307996197,0.03852039,173.3,173.26,121.87795875]
[1748307996388,0.03852039,173.3,173.26,0.03795875]
[1748307996887,5.7696,173.27,173.26,0.03795875]
[1748307999400,5.771,173.23,173.19,5.7722]
[1748307999703,121.84,173.29,173.16,121.84]
[1748308000003,5.7718,173.21,173.17,5.7727]
[1748308000500,0.03811645,173.21,173.17,5.81275674]
[1748308000697,5.7719,173.2,173.17,0.04005674]
[1748308000893,0.03811645,173.21,173.17,0.04005674]
[1748308001096,5.80971645,173.21,173.17,0.04005674]
[1748308001400,0.03811645,173.21,173.17,0.04005674]
[1748308002603,5.772,173.2,173.17,0.04005674]
[1748308002998,0.03811645,173.21,173.17,0.04005674]
[1748308003700,5.7723,173.19,173.17,0.04005674]
[1748308004503,0.03811645,173.21,173.17,0.04005674]
[1748308004706,0.03811645,173.21,172.98,510.0185]
[1748308004707,124.65938126,173.2,172.98,510.0185]
[1748308004908,12.80877877,173.18,173.05,2.0149]
[1748308005211,2.79938126,173.17,173.05,123.8749]
[1748308005412,12.80877877,173.18,173.05,123.8749]
[1748308005413,124.65938126,173.16,173.05,123.8749]
[1748308005708,0.04277845,173.12,173.09,0.03653524]
[1748308005908,4.96248186,173.19,173.09,0.03653524]
[1748308005909,4.96248186,173.19,173.11,5.7749]
[1748308006111,2.79709664,173.18,173.11,5.7749]
[1748308006313,2.79719593,173.17,173.11,5.7749]
[1748308006504,5.773,173.17,173.12,5.7746]
[1748308006705,2.79557993,173.16,173.09,121.86]
[1748308006905,0.04315408,173.14,173.11,0.03793545]
[1748308007106,5.81715408,173.14,173.11,0.03793545]
[1748308007601,0.04315408,173.14,173.11,0.03793545]
[1748308008006,0.04315408,173.14,173.11,5.81283545]
[1748308009413,0.04315408,173.14,173.12,5.7746]
[1748308009913,0.04315408,173.14,173.11,0.03793545]
[1748308010113,5.7726,173.18,173.11,0.03793545]
[1748308010308,121.86,173.21,173.11,0.03793545]
[1748308010507,127.12699913,173.25,173.11,0.03793545]
[1748308010713,12.80877877,173.22,173.07,2.0805]
[1748308010914,2.79693596,173.21,173.08,231.54]
[1748308011115,0.04141601,173.16,173.13,0.0373647]
[1748308011318,5.81471601,173.16,173.13,0.0373647]
[1748308011507,0.04141601,173.16,173.13,0.0373647]
[1748308011813,5.81481601,173.16,173.13,0.0373647]
[1748308012010,0.04141601,173.16,173.13,0.0373647]
[1748308012515,5.7739,173.14,173.13,0.0373647]
[1748308013113,5.7737,173.15,173.13,0.0373647]
[1748308013309,0.04141601,173.16,173.13,0.0373647]
[1748308014315,5.81471601,173.16,173.13,0.0373647]
[1748308014809,0.04141601,173.16,173.13,0.0373647]
[1748308015209,0.04141601,173.16,173.13,5.8115647]
[1748308015610,0.04141601,173.16,173.13,0.0373647]
[1748308017512,0.04141601,173.16,173.13,4.1669647]
[1748308017717,0.04141601,173.16,173.14,1.9164]
[1748308018318,0.04141601,173.16,173.15,5.7736]
[1748308019213,122.02,173.25,173.17,5.7729]
[1748308019416,2.79812815,173.24,173.17,127.7929]
[1748308019615,2.79879351,173.23,173.17,127.7929]
[1748308019816,4.96835994,173.24,173.17,127.7929]
[1748308020116,0.04386115,173.22,173.19,0.04345411]
[1748308020415,0.04332926,173.22,173.19,0.03858513]
[1748308020813,5.772,173.2,173.19,0.03858513]
[1748308021819,2.80029231,173.2,173.11,122.02]
[1748308022118,122.02,173.21,173.11,122.02]
[1748308022315,2.80069104,173.2,173.11,122.02]
[1748308022516,122.02,173.21,173.11,122.02]
[1748308022717,0.04104256,173.18,173.14,0.04388551]
[1748308023212,5.7764,173.07,173.03,127.7975]
[1748308023618,12.80877877,173.15,173.03,122.02]
[1748308023818,2.79944634,173.14,173.03,122.02]
[1748308024020,12.80877877,173.15,173.03,122.02]
[1748308024220,12.80877877,173.15,173.07,0.04042088]
[1748308024221,0.0371326,173.11,173.07,0.04042088]
[1748308025017,5.776,173.08,173.07,0.04042088]
[1748308028420,5.7773,173.04,173.03,122.02]
[1748308029115,5.778,173.02,173.0,1.9602]
[1748308029319,5.778,173.02,173.0,124.0202]
[1748308029716,5.81472139,173.03,173.0,124.0202]
[1748308030121,5.81472139,173.03,173.0,122.06]
[1748308030122,0.03702139,173.03,173.0,122.06]
[1748308031421,0.03702139,173.03,173.01,5.7783]
[1748308031625,0.03702139,173.03,173.0,122.06]
[1748308031922,5.22699913,173.12,173.0,122.06]
[1748308032114,5.7759,173.09,173.04,5.7772]
[1748308032315,5.22699913,173.12,173.0,122.06]
[1748308032520,5.7753,173.11,173.01,122.08]
[1748308032823,0.0380259,173.08,173.04,0.03969621]
[1748308033813,5.777,173.05,173.04,0.03969621]
[1748308034913,5.7767,173.06,173.04,0.03969621]
[1748308035325,5.7769,173.06,173.04,0.03969621]
[1748308035622,0.0380259,173.08,173.04,0.03969621]
[1748308035816,5.777,173.05,173.04,0.03969621]
[1748308036014,0.0380259,173.08,173.04,0.03969621]
[1748308036425,5.777,173.05,173.04,0.03969621]
[1748308037627,5.7768,173.06,173.04,0.03969621]
[1748308037826,0.0380259,173.08,173.04,0.03969621]
[1748308038222,5.8141259,173.08,173.04,0.03969621]
[1748308039329,5.7764,173.07,173.04,0.03969621]
[1748308039721,0.0380259,173.08,173.04,0.03969621]
[1748308039925,5.777,173.05,173.04,0.03969621]
[1748308042023,5.7767,173.06,173.04,0.03969621]
[1748308042525,0.0380259,173.08,173.04,0.03969621]
[1748308042724,5.7764,173.07,173.04,0.03969621]
[1748308043419,0.0380259,173.08,173.04,0.03969621]
[1748308043618,0.0380259,173.08,173.05,122.1]
[1748308043931,5.22699913,173.14,173.06,4.0997]
[1748308044226,5.775,173.12,173.07,5.7762]
[1748308044426,5.22699913,173.14,173.07,5.7762]
[1748308044825,0.03668869,173.12,173.09,0.03832741]
[1748308045327,0.03668869,173.12,173.09,122.13832741]
[1748308046320,5.22699913,173.21,173.09,122.13832741]
[1748308046529,5.22699913,173.21,173.09,122.1]
[1748308046730,5.772,173.2,173.09,122.1]
[1748308046930,5.22699913,173.21,173.09,122.1]
[1748308047330,0.04363335,173.17,173.13,0.04312555]
[1748308047527,0.04363335,173.17,173.14,123.18]
[1748308047927,5.81683335,173.17,173.14,123.18]
[1748308048826,5.7734,173.16,173.14,123.18]
[1748308049026,0.04363335,173.17,173.14,123.18]
[1748308050025,5.7737,173.15,173.14,123.18]
[1748308051529,5.7737,173.15,173.13,0.04312555]
[1748308052833,5.774,173.14,173.13,0.04312555]
[1748308055633,5.7738,173.15,173.13,0.04312555]
[1748308055835,0.04363335,173.17,173.13,0.04312555]
[1748308057541,5.7734,173.16,173.13,0.04312555]
[1748308057745,0.04363335,173.17,173.13,0.04312555]
[1748308058745,5.774,173.14,173.13,0.04312555]
[1748308061844,5.7737,173.15,173.13,0.04312555]
[1748308062042,0.04363335,173.17,173.13,0.04312555]
[1748308062439,5.7739,173.15,173.13,0.04312555]
[1748308063046,5.81683335,173.17,173.13,0.04312555]
[1748308063450,0.04363335,173.17,173.13,117.49492555]
[1748308065157,0.04363335,173.17,173.13,111.72062555]
[1748308065352,5.22699913,173.25,173.14,4.0695]
[1748308065649,5.7712,173.23,173.18,5.7726]
[1748308065852,5.7712,173.23,173.19,123.14]
[1748308066154,5.22699913,173.26,173.19,123.14]
[1748308066352,0.04316275,173.24,173.21,0.03901054]
[1748308068956,5.81416275,173.24,173.21,0.03901054]
[1748308069157,0.04316275,173.24,173.21,0.03901054]
[1748308069557,5.7713,173.22,173.21,0.03901054]
[1748308070956,0.04316275,173.24,173.15,123.1]
[1748308071159,125.1238,173.25,173.15,123.1]
[1748308071962,0.03916556,173.22,173.18,0.04021625]
[1748308072159,5.7723,173.19,173.18,0.04021625]
[1748308077456,5.7721,173.2,173.18,0.04021625]
[1748308077863,0.03916556,173.22,173.18,0.04021625]
[1748308078659,5.7719,173.21,173.18,0.04021625]
[1748308078965,0.03916556,173.22,173.18,0.04021625]
[1748308079160,5.7723,173.2,173.18,0.04021625]
[1748308079366,0.03916556,173.22,173.18,0.04021625]
[1748308079869,5.7723,173.19,173.18,0.04021625]
[1748308082671,5.7721,173.2,173.18,0.04021625]
[1748308082970,0.03916556,173.22,173.18,5.81261625]
[1748308083164,0.03916556,173.22,173.19,122.04]
[1748308083770,0.03916556,173.22,173.19,231.7]
[1748308084072,122.04,173.29,173.19,231.7]
[1748308084273,122.04,173.29,173.2,3.952]
[1748308084575,5.22699913,173.3,173.22,5.7712]
[1748308084765,2.80759987,173.29,173.23,122.04]
[1748308084969,5.22699913,173.3,173.23,122.04]
[1748308085272,5.7697,173.27,173.25,0.04425379]
[1748308085667,0.04048197,173.28,173.25,0.04425379]
[1748308085868,5.77,173.27,173.25,0.04425379]
[1748308086069,0.04048197,173.28,173.25,0.04425379]
[1748308086474,5.7697,173.27,173.25,0.04425379]
[1748308086972,0.04048197,173.28,173.25,0.04425379]
[1748308087173,5.77,173.26,173.25,0.04425379]
[1748308089476,5.7707,173.24,173.23,122.04]
[1748308089776,8.66948396,173.28,173.19,122.02]
[1748308089976,2.81162328,173.27,173.19,122.02]
[1748308090276,2.81159188,173.26,173.19,122.02]
[1748308090470,0.04410884,173.24,173.21,0.04101993]
[1748308090772,5.7713,173.22,173.21,0.04101993]
[1748308093283,8.58107548,173.22,173.21,0.04101993]
[1748308093785,8.58107548,173.22,173.21,1.993e-05]
[1748308093980,8.58123326,173.22,173.21,1.993e-05]
[1748308097590,8.58019158,173.22,173.21,1.993e-05]
[1748308098080,2.80889158,173.22,173.21,1.993e-05]
[1748308098282,0.04410884,173.24,173.21,1.993e-05]
[1748308098990,5.7711,173.23,173.21,1.993e-05]
[1748308099186,0.04410884,173.24,173.21,1.993e-05]
[1748308099588,5.7713,173.22,173.21,1.993e-05]
[1748308103991,0.04410884,173.24,173.21,1.993e-05]
[1748308105085,0.04410884,173.24,173.22,122.02]
[1748308105286,5.22699913,173.29,173.22,122.02]
[1748308105486,2.81157666,173.28,173.23,2.0065]
[1748308105789,10.99619913,173.29,173.23,111.6465]
[1748308106091,10.99619913,173.29,173.25,5.7701]
[1748308106296,5.26438956,173.29,173.26,122.02]
[1748308106490,5.26438956,173.29,173.26,127.7898]
[1748308106790,0.03739043,173.29,173.26,122.02]
[1748308107196,5.7693,173.28,173.26,122.02]
[1748308108097,5.80639043,173.29,173.26,122.02]
[1748308109096,0.03739043,173.29,173.26,127.79]
[1748308109692,0.03739043,173.29,173.26,122.02]
[1748308109894,0.03739043,173.29,173.25,0.03817926]
[1748308110291,2.81181588,173.28,173.25,0.03817926]
[1748308110587,0.03739043,173.29,173.25,0.03817926]
[1748308110792,5.77,173.26,173.25,0.03817926]
[1748308116402,8.58206824,173.26,173.25,0.03817926]
[1748308117604,8.58214148,173.26,173.25,0.03817926]
[1748308117995,2.81214148,173.26,173.25,0.03817926]
[1748308118199,8.6678295,173.29,173.25,0.03817926]
[1748308118505,2.81203702,173.28,173.25,0.03817926]
[1748308118801,8.6678295,173.29,173.25,0.03817926]
[1748308119001,2.81209341,173.28,173.25,0.03817926]
[1748308119203,0.03739043,173.29,173.25,0.03817926]
[1748308119400,56.5,173.26,173.25,0.03817926]
[1748308120305,56.5,173.26,173.25,5.80847926]
[1748308121599,56.5,173.26,173.25,0.03817926]
[1748308121805,62.27,173.26,173.25,0.03817926]
[1748308126409,65.07910559,173.26,173.25,0.03817926]
[1748308127509,70.05853962,173.26,173.25,7.926e-05]
[1748308127709,5.771,173.23,173.22,120.76]
[1748308128607,5.771,173.23,173.21,0.04154659]
[1748308129102,5.7713,173.22,173.21,0.04154659]
[1748308129604,5.7711,173.23,173.21,0.04154659]
[1748308129798,0.03937285,173.24,173.21,120.80154659]
[1748308130005,5.22699913,173.3,173.21,120.80154659]
[1748308130304,2.80970202,173.29,173.21,129.43198566]
[1748308130507,5.22699913,173.3,173.21,129.43198566]
[1748308130709,5.22699913,173.32,173.28,5.769]
[1748308131008,5.26700477,173.32,173.29,230.38]
[1748308133310,5.7687,173.3,173.29,230.38]
[1748308134810,129.41044471,173.32,173.19,500.5739]
[1748308135006,8.63043907,173.29,173.2,230.34]
[1748308135207,2.80724863,173.28,173.2,230.34]
[1748308135404,2.80724863,173.27,173.2,120.74]
[1748308135604,8.63043907,173.29,173.2,120.74]
[1748308135605,8.63043907,173.29,173.21,109.6]
[1748308135816,2.8077936,173.28,173.21,109.6]
[1748308136110,2.85227186,173.27,173.23,0.03901054]
[1748308136302,2.80784352,173.26,173.23,0.03901054]
[1748308136507,0.04447826,173.27,173.23,0.03901054]
[1748308136811,2.80810079,173.26,173.23,0.03901054]
[1748308137004,5.7707,173.24,173.23,0.03901054]
[1748308137814,5.7702,173.26,173.23,0.03901054]
[1748308138112,0.04447826,173.27,173.23,0.03901054]
[1748308138519,5.7701,173.26,173.23,0.03901054]
[1748308138712,0.04447826,173.27,173.23,0.03901054]
[1748308139211,5.7703,173.25,173.23,0.03901054]
[1748308140417,5.7707,173.24,173.23,0.03901054]
[1748308141219,0.04447826,173.27,173.23,0.03901054]
[1748308141518,0.04447826,173.27,173.24,121.58]
[1748308141920,5.81437826,173.27,173.24,121.58]
[1748308142119,0.04447826,173.27,173.24,121.58]
[1748308142613,5.7703,173.25,173.24,121.58]
[1748308143317,5.7707,173.24,173.23,0.03901054]
[1748308144820,8.58263792,173.24,173.23,0.03901054]
[1748308146120,5.7707,173.24,173.23,0.03901054]
[1748308147319,0.04447826,173.27,173.23,0.03901054]
[1748308147514,0.04447826,173.27,173.26,5.77]
[1748308147722,5.22699913,173.29,173.26,231.2]
[1748308148223,5.7684,173.31,173.26,231.2]
[1748308148617,5.7684,173.31,173.27,5.7694]
[1748308148812,5.80891266,173.31,173.27,0.04441802]
[1748308149015,0.04051266,173.31,173.27,0.04441802]
[1748308149213,0.04051266,173.31,173.29,5.769]
[1748308149519,0.04051266,173.31,173.26,180.51341802]
[1748308150223,0.04051266,173.31,173.28,5.769]
[1748308150522,0.04051266,173.31,173.28,5.80989311]
[1748308151626,5.80891266,173.31,173.28,0.04089311]
[1748308152126,0.04051266,173.31,173.28,5.80999311]
[1748308152726,0.04051266,173.31,173.29,5.769]
[1748308153624,0.04051266,173.31,173.3,127.3487]
[1748308154026,5.22699913,173.38,173.3,121.58]
[1748308154228,2.80870201,173.37,173.3,121.58]
[1748308154430,2.80870201,173.36,173.3,231.18]
[1748308154630,5.7678,173.33,173.3,231.18]
[1748308155327,5.80755958,173.33,173.3,231.21840753]
[1748308156729,5.7681,173.32,173.3,231.21840753]
[1748308157830,5.7683,173.31,173.3,231.21840753]
[1748308163538,0.03975958,173.33,173.3,236.98710753]
[1748308163739,0.03975958,173.33,173.3,231.21840753]
[1748308164040,0.03975958,173.33,173.3,236.98700753]
[1748308164737,0.03975958,173.33,173.31,5.7683]
[1748308165141,0.03975958,173.33,173.32,5.768]
[1748308165441,5.7668,173.36,173.32,5.768]
[1748308165740,5.22699913,173.41,173.31,4.0364]
[1748308165935,2.80510409,173.4,173.31,9.8046]
[1748308166139,2.80510409,173.39,173.31,9.8046]
[1748308166335,5.7672,173.35,173.33,0.04188981]
[1748308166541,5.7672,173.35,173.34,121.54]
[1748308167035,0.04426532,173.37,173.34,121.54]
[1748308167339,0.04426532,173.37,173.33,0.04188981]
[1748308167538,5.7673,173.34,173.33,231.14188981]
[1748308170534,5.7673,173.34,173.33,0.04188981]
[1748308170734,5.7673,173.34,173.33,8.981e-05]
[1748308171632,8.621837,173.36,173.25,4.1079]
[1748308171834,8.621837,173.33,173.25,2.0458]
[1748308172037,2.80171999,173.32,173.25,229.54]
[1748308172344,5.7693,173.29,173.25,229.54]
[1748308172740,5.81356512,173.29,173.25,229.5817674]
[1748308172945,0.04426512,173.29,173.26,5.77]
[1748308174544,0.04426512,173.29,173.27,5.7696]
[1748308175045,0.04426512,173.29,173.26,5.7699]
[1748308177855,5.81336512,173.29,173.25,235.3520674]
[1748308178153,0.04426512,173.29,173.25,235.3520674]
[1748308179450,5.7694,173.28,173.25,235.3520674]
[1748308179956,5.81336512,173.29,173.25,235.3520674]
[1748308180353,5.81336512,173.29,173.25,229.5817674]
[1748308180354,0.04426512,173.29,173.25,229.5817674]
[1748308180750,5.22699913,173.37,173.25,229.5817674]
[1748308180958,2.80787103,173.36,173.25,229.54]
[1748308181255,2.80822589,173.35,173.25,229.54]
[1748308181456,5.22699913,173.37,173.29,5.769]
[1748308181655,0.04125518,173.35,173.31,0.03988014]
[1748308181853,0.04125518,173.35,173.32,109.58]
[1748308182256,5.7677,173.33,173.32,109.58]
[1748308182556,0.04125518,173.35,173.31,0.03988014]
[1748308182755,2.80975893,173.34,173.31,0.03988014]
[1748308183053,5.768,173.32,173.31,0.03988014]
[1748308186160,5.7678,173.33,173.31,0.03988014]
[1748308187061,5.768,173.32,173.31,0.03988014]
[1748308188152,8.58040492,173.32,173.31,0.03988014]
[1748308188764,8.58107319,173.32,173.31,0.03988014]
[1748308189957,8.5817514,173.32,173.31,0.03988014]
[1748308190563,8.58313207,173.32,173.31,0.03988014]
[1748308191961,13.56013962,173.32,173.31,0.03988014]
[1748308192362,13.56013962,173.32,173.31,8.014e-05]
[1748308192856,5.77,173.26,173.19,507.141837]
[1748308193062,8.621837,173.29,173.22,120.0]
[1748308193258,8.621837,173.26,173.19,120.0]
[1748308193469,2.81659437,173.25,173.19,120.0]
[1748308193667,5.772,173.2,173.19,120.0]
[1748308193969,0.04116637,173.21,173.18,0.04442171]
[1748308194162,0.03921305,173.21,173.18,0.04442171]
[1748308194767,5.7721,173.2,173.18,0.04442171]
[1748308195766,0.03921305,173.21,173.18,0.04442171]
[1748308195767,5.7723,173.19,173.18,0.04442171]
[1748308196573,5.7733,173.16,173.12,624.0746]
[1748308196872,5.7733,173.16,173.13,109.6]
[1748308197370,5.7737,173.15,173.13,109.6]
[1748308197970,5.7737,173.15,173.12,120.06448903]
[1748308198169,5.774,173.14,173.12,120.06448903]
[1748308198365,5.774,173.14,173.12,229.66448903]
[1748308198667,5.7737,173.15,173.12,229.66448903]
[1748308198863,0.03781334,173.16,173.12,0.04448903]
[1748308199271,5.7743,173.13,173.12,0.04448903]
[1748308199670,5.7758,173.09,173.06,119.26]
[1748308199875,5.7758,173.09,173.01,1.9415]
[1748308200075,119.26,173.13,172.99,4.0953]
[1748308200377,8.621837,173.05,172.98,1.35828349]
[1748308200766,0.0365166,173.03,173.0,0.03911444]
[1748308200969,8.621837,173.09,173.0,119.29911444]
[1748308201175,8.621837,173.09,173.01,2.0801]
[1748308201376,8.621837,173.12,173.01,2.0801]
[1748308201575,119.26,173.13,173.02,1.9408]
[1748308202075,0.03652922,173.09,173.06,0.03746902]
[1748308202375,0.03652922,173.09,173.06,234.73406902]
[1748308202578,0.03652922,173.09,173.06,228.95746902]
[1748308202775,0.03652922,173.09,173.07,5.776]
[1748308203079,0.03652922,173.09,173.06,228.95746902]
[1748308203481,0.03652922,173.09,173.08,5.776]
[1748308203679,5.22699913,173.14,173.06,228.95746902]
[1748308203877,2.0346,173.18,173.06,228.95746902]
[1748308204079,5.7731,173.17,173.12,5.7747]
[1748308204281,141.34261003,173.22,173.1,119.3]
[1748308204580,0.04374079,173.18,173.14,0.04225743]
[1748308207377,5.7737,173.15,173.14,0.04225743]
[1748308207976,0.04374079,173.18,173.14,0.04225743]
[1748308208375,5.7737,173.15,173.14,0.04225743]
[1748308209483,5.7755,173.1,173.08,119.32]
[1748308209678,12.8099109,173.17,173.08,119.32]
[1748308210087,5.7749,173.12,173.08,119.32]
[1748308210386,12.8099109,173.17,173.04,1.9596]
[1748308210585,0.04281545,173.12,173.08,0.04273525]
[1748308211086,5.81781545,173.12,173.08,0.04273525]
[1748308211587,5.775,173.11,173.08,0.04273525]
[1748308211785,0.04281545,173.12,173.08,0.04273525]
[1748308212685,5.7757,173.09,173.08,0.04273525]
[1748308213895,5.7757,173.09,173.08,3.525e-05]
[1748308214590,5.7751,173.11,173.08,3.525e-05]
[1748308214792,0.04281545,173.12,173.08,3.525e-05]
[1748308215885,5.7736,173.16,173.11,5.7747]
[1748308216086,5.7736,173.16,173.12,229.04]
[1748308216288,5.22699913,173.18,173.12,229.04]
[1748308217093,0.04414528,173.17,173.13,0.04046918]
[1748308217489,5.22699913,173.18,173.13,0.04046918]
[1748308217791,5.22699913,173.18,173.16,5.7733]
[1748308217994,7.07168346,173.21,173.17,119.34]
[1748308218190,119.34,173.26,173.18,119.34]
[1748308218390,0.03908231,173.24,173.2,0.03989016]
[1748308218995,5.7717,173.21,173.2,0.03989016]
[1748308219291,0.03908231,173.24,173.2,109.73989016]
[1748308220789,0.03908231,173.24,173.2,115.51179016]
[1748308220993,0.03908231,173.24,173.2,109.73989016]
[1748308221195,132.1299109,173.32,173.2,109.73989016]
[1748308221493,2.0873,173.34,173.2,109.7]
[1748308221689,12.8099109,173.33,173.2,109.7]
[1748308221899,12.8099109,173.28,173.15,109.68]
[1748308222095,5.7717,173.21,173.2,0.03944188]
[1748308222492,0.03740773,173.23,173.2,119.35944188]
[1748308222996,5.80850773,173.23,173.2,119.35944188]
[1748308223397,5.7714,173.22,173.2,119.35944188]
[1748308224798,5.7717,173.21,173.2,0.03944188]
[1748308225591,5.7737,173.15,173.14,119.32]
[1748308225898,12.8099109,173.23,173.14,119.32]
[1748308226292,12.8099109,173.23,173.14,119.3]
[1748308226489,2.0314,173.25,173.14,119.3]
[1748308226689,0.04006387,173.2,173.17,0.04082588]
[1748308226991,5.7727,173.18,173.17,0.04082588]
[1748308227700,8.56309726,173.18,173.04,121.3592]
[1748308227994,12.8099109,173.16,173.04,121.3592]
[1748308228197,12.8099109,173.16,173.05,109.66]
[1748308228386,5.7758,173.09,173.05,109.66]
[1748308228592,0.04235231,173.09,173.05,109.70412995]
[1748308228791,0.04235231,173.09,173.06,5.7766]
[1748308228993,0.04235231,173.09,173.05,109.70412995]
[1748308229294,0.04235231,173.09,173.05,0.04412995]
[1748308229597,0.04235231,173.09,173.05,109.70412995]
[1748308229896,5.7765,173.07,173.05,0.04412995]
[1748308230397,5.7767,173.06,173.05,0.04412995]
[1748308230785,0.04235231,173.09,173.05,0.04412995]
[1748308230989,5.7764,173.07,173.05,0.04412995]
[1748308231191,0.04235231,173.09,173.05,0.04412995]
[1748308231996,0.04235231,173.09,173.05,5.82102995]
[1748308232594,4.1073,173.16,173.05,0.04412995]
[1748308232799,119.3,173.17,173.04,231.0192]
[1748308233098,5.7746,173.13,173.08,5.7757]
[1748308233296,5.7746,173.13,173.09,122.5]
[1748308233496,119.3,173.17,173.09,122.5]
[1748308233688,5.7753,173.1,173.09,122.5]
[1748308235000,5.81512472,173.11,173.09,122.5]
[1748308235500,0.04002472,173.11,173.09,122.5]
[1748308237094,0.04002472,173.11,173.08,0.04270714]
[1748308237095,5.7753,173.1,173.08,0.04270714]
[1748308238302,5.7757,173.09,173.08,7.14e-06]
[1748308239204,5.7774,173.04,173.02,122.52]
[1748308239898,12.8099109,173.11,173.02,122.52]
[1748308240198,0.04270613,173.08,173.05,0.03999206]
[1748308241103,0.04270613,173.08,173.05,9.206e-05]
[1748308241104,5.777,173.06,173.05,9.206e-05]
[1748308244107,0.04270613,173.08,173.05,9.206e-05]
[1748308245199,5.7767,173.06,173.05,9.206e-05]
[1748308250111,5.7764,173.07,173.05,9.206e-05]
[1748308250516,0.04270613,173.08,173.05,9.206e-05]
[1748308250909,5.7767,173.06,173.05,9.206e-05]
[1748308252010,5.7783,173.01,173.0,122.54]
[1748308252514,3.987,173.07,172.97,498.64]
[1748308252712,12.8099109,173.05,172.95,122.54]
[1748308252907,3.987,173.07,172.95,122.54]
[1748308253107,0.03756972,173.03,172.99,0.03731306]
[1748308253612,5.7787,173.0,172.99,0.03731306]
[1748308255818,5.7787,173.0,172.99,1.306e-05]
[1748308256526,5.7784,173.01,172.99,1.306e-05]
[1748308257220,0.03756972,173.03,172.99,1.306e-05]
[1748308260230,5.7787,173.0,172.99,1.306e-05]
[1748308261321,5.7784,173.01,172.99,1.306e-05]
[1748308261530,0.03756972,173.03,172.99,1.306e-05]
[1748308262231,0.03756972,173.03,172.99,5.77891306]
[1748308262436,0.03756972,173.03,172.99,1.306e-05]
[1748308262633,5.7787,173.0,172.99,1.306e-05]
[1748308263730,5.7784,173.01,172.99,1.306e-05]
[1748308264036,0.03756972,173.03,172.99,1.306e-05]
[1748308264535,0.03756972,173.03,172.99,122.56001306]
[1748308264735,5.7786,173.01,172.99,122.56001306]
[1748308264934,0.03756972,173.03,172.99,122.56001306]
[1748308265324,5.7787,173.0,172.99,1.306e-05]
[1748308266930,5.7781,173.02,172.99,1.306e-05]
[1748308267528,5.81526972,173.03,172.99,1.306e-05]
[1748308267732,0.03756972,173.03,173.0,122.58]
[1748308267934,122.58,173.09,173.03,5.7777]
[1748308268437,126.6787,173.13,173.03,5.7777]
[1748308268738,2.79305153,173.12,173.01,109.76]
[1748308268934,5.7766,173.07,173.05,0.0422606]
[1748308269435,5.7767,173.06,173.05,0.0422606]
[1748308272430,5.7794,172.98,172.86,17.35]
[1748308272635,122.56,173.03,172.9,126.4801]